bitfinex/quotes_SOLUSD_20260304
["timestamp","ask_amount","ask_price","bid_price","bid_amount"]
[1772636438919,0.14216157,90.649,90.574,3.69383402]
[1772636439117,27.57677373,90.656,90.578,3.69383402]
[1772636439316,15.27560436,90.63,90.579,6.88829798]
[1772636439517,38.61898509,90.629,90.58,6.88829798]
[1772636439718,38.61898509,90.629,90.581,6.88829798]
[1772636439897,38.61898509,90.629,90.582,6.88829798]
[1772636440098,38.61898509,90.629,90.516,1.10477705]
[1772636440099,15.27560436,90.61,90.554,8.45204868]
[1772636440421,15.27560436,90.6,90.546,8.45204868]
[1772636440613,5.10909883,90.628,90.533,8.45204868]
[1772636440821,15.27560436,90.55,90.517,8.45204868]
[1772636441003,15.27560436,90.53,90.483,8.45204868]
[1772636441203,15.27560436,90.54,90.473,8.45204868]
[1772636441403,231.47835674,90.56,90.474,8.45204868]
[1772636441708,231.47835674,90.56,90.449,8.45204868]
[1772636441709,15.27560436,90.49,90.449,8.45204868]
[1772636442021,15.27560436,90.49,90.417,8.45204868]
[1772636442205,5.10909883,90.538,90.444,8.45204868]
[1772636442412,4.82477569,90.559,90.451,12.1458827]
[1772636442614,15.27560436,90.53,90.49,3.7765116]
[1772636442808,15.27560436,90.53,90.472,8.45204868]
[1772636443009,15.27560436,90.52,90.463,8.45204868]
[1772636443213,15.27560436,90.5,90.462,8.45204868]
[1772636443416,15.27560436,90.51,90.462,8.45204868]
[1772636443617,15.27560436,90.5,90.45,8.45204868]
[1772636443805,15.27560436,90.5,90.453,8.45204868]
[1772636444006,15.27560436,90.49,90.447,8.45204868]
[1772636444213,15.27560436,90.5,90.448,7.91222675]
[1772636444416,15.27560436,90.51,90.463,8.45204868]
[1772636444628,15.27560436,90.53,90.467,3.69383402]
[1772636444922,0.28432314,90.552,90.482,8.89065185]
[1772636445123,15.27560436,90.53,90.467,3.69383402]
[1772636445312,15.27560436,90.5,90.447,11.26818348]
[1772636445517,38.67873443,90.489,90.426,0.14216157]
[1772636445713,38.67873443,90.489,90.425,3.69383402]
[1772636445908,11.05106698,90.489,90.422,11.26818348]
[1772636446110,11.05106698,90.489,90.439,0.28432314]
[1772636446320,27.62369892,90.502,90.45,11.26818348]
[1772636446520,27.62369892,90.502,90.451,11.26818348]
[1772636446823,15.27560436,90.5,90.451,11.26818348]
[1772636447125,15.27560436,90.5,90.38,22.65803751]
[1772636447126,15.27560436,90.48,90.386,22.73782356]
[1772636447424,15.27560436,90.5,90.41,20.69576636]
[1772636447638,27.62461463,90.499,90.418,3.69383402]
[1772636447934,15.27560436,90.49,90.419,3.97815716]
[1772636448430,11.04984585,90.499,90.419,3.97815716]
[1772636448627,38.67446048,90.499,90.412,3.97815716]
[1772636448807,11.04984585,90.499,90.412,3.97815716]
[1772636449014,15.38879227,90.53,90.429,0.28432314]
[1772636449211,15.38879227,90.53,90.43,0.28432314]
[1772636449434,15.38879227,90.52,90.43,0.28432314]
[1772636449726,15.38879227,90.51,90.418,5.10909883]
[1772636449910,38.66591544,90.519,90.421,3.97815716]
[1772636450114,11.04740441,90.519,90.433,3.69383402]
[1772636450430,49.68,90.652,90.442,0.28432314]
[1772636450617,15.38879227,90.54,90.446,0.28432314]
[1772636450822,15.38879227,90.54,90.45,5.10909883]
[1772636451021,15.38879227,90.54,90.45,0.28432314]
[1772636451419,15.38879227,90.53,90.445,3.69383402]
[1772636451629,11.04618409,90.529,90.446,0.28432314]
[1772636451932,15.38879227,90.55,90.455,0.28432314]
[1772636452131,0.14216157,90.559,90.46,0.28432314]
[1772636452315,54.02866862,90.58,90.476,3.69383402]
[1772636452518,54.02866862,90.58,90.481,4.82477569]
[1772636452519,38.63987635,90.58,90.481,4.82477569]
[1772636452718,38.63987635,90.58,90.497,0.28432314]
[1772636452917,38.63987635,90.58,90.49,0.28432314]
[1772636452918,38.63987635,90.58,90.502,0.28432314]
[1772636453132,38.63987635,90.58,90.507,0.28432314]
[1772636453335,11.03764942,90.599,90.512,0.28432314]
[1772636453552,27.59412355,90.599,90.522,0.28432314]
[1772636453741,15.38879227,90.64,90.524,4.82477569]
[1772636454035,15.38879227,90.62,90.525,7.18160703]
[1772636454241,15.38879227,90.62,90.518,38.66634259]
[1772636454242,15.38879227,90.63,90.526,12.00638272]
[1772636454423,15.38879227,90.63,90.528,4.82477569]
[1772636454627,38.60961268,90.651,90.53,4.82477569]
[1772636454827,15.38879227,90.62,90.531,7.18160703]
[1772636455141,15.38879227,90.63,90.532,7.18160703]
[1772636455311,15.38879227,90.63,90.533,7.18160703]
[1772636455512,15.38879227,90.63,90.518,38.66634259]
[1772636455513,15.38879227,90.62,90.535,0.14216157]
[1772636455735,38.62324677,90.619,90.54,0.28432314]
[1772636455939,38.62324677,90.619,90.545,0.28432314]
[1772636456132,38.62324677,90.619,90.55,0.28432314]
[1772636456332,15.38879227,90.63,90.555,0.28432314]
[1772636456526,15.38879227,90.63,90.559,3.69383402]
[1772636456837,15.38879227,90.63,90.56,7.18160703]
[1772636457136,15.38879227,90.65,90.562,0.28432314]
[1772636457333,27.57281981,90.669,90.567,0.28432314]
[1772636457541,27.57281981,90.669,90.572,0.28432314]
[1772636457751,27.57281981,90.669,90.577,0.28432314]
[1772636458037,15.38879227,90.64,90.578,15.14258721]
[1772636458238,15.38879227,90.64,90.579,15.14258721]
[1772636458416,27.57281981,90.669,90.584,0.28432314]
[1772636458618,27.57281981,90.669,90.589,0.28432314]
[1772636458834,27.57281981,90.669,90.591,0.28432314]
[1772636459034,11.0282765,90.676,90.596,0.28432314]
[1772636459245,15.38879227,90.71,90.601,0.28432314]
[1772636459428,11.0282765,90.676,90.606,0.28432314]
[1772636459616,11.0282765,90.676,90.569,17.00193234]
[1772636459617,15.38879227,90.72,90.616,0.28432314]
[1772636459818,11.02765453,90.682,90.621,0.28432314]
[1772636460138,38.59896775,90.676,90.622,15.14258721]
[1772636460341,11.0282765,90.676,90.623,15.14258721]
[1772636460540,15.38879227,90.67,90.594,0.28432314]
[1772636460740,11.02764782,90.682,90.602,0.28432314]
[1772636460936,11.02764782,90.682,90.607,0.28432314]
[1772636461134,38.59651484,90.682,90.612,0.28432314]
[1772636461340,15.38879227,90.67,90.613,15.11134451]
[1772636461638,11.16642597,90.709,90.623,0.28432314]
[1772636461840,27.56400361,90.698,90.628,0.28432314]
[1772636462048,27.56400361,90.698,90.629,15.11154963]
[1772636462255,27.56400361,90.698,90.63,7.1583548]
[1772636462564,44.06783619,90.77,90.635,0.28432314]
[1772636462844,3.69383402,90.757,90.64,0.28432314]
[1772636463028,15.38879227,90.72,90.641,15.10774946]
[1772636463229,15.38879227,90.69,90.642,15.10774946]
[1772636463441,15.38879227,90.69,90.619,38.62324677]
[1772636463442,15.38879227,90.69,90.622,3.69383402]
[1772636463635,15.38879227,90.69,90.623,15.10877118]
[1772636463823,15.38879227,90.68,90.624,7.15703106]
[1772636464023,38.5934347,90.689,90.626,0.28432314]
[1772636464230,38.5934347,90.689,90.628,0.28432314]
[1772636464427,38.5934347,90.689,90.629,15.10566554]
[1772636464747,38.5934347,90.689,90.628,0.28432314]
[1772636464748,15.38879227,90.66,90.56,99.38162543]
[1772636464925,15.38879227,90.67,90.571,27.60265427]
[1772636465224,15.38879227,90.67,90.575,3.69383402]
[1772636465427,11.02669563,90.689,90.58,4.82477569]
[1772636465627,66.05127181,90.839,90.587,5.10909883]
[1772636465628,38.57812068,90.725,90.587,5.10909883]
[1772636465837,15.38879227,90.71,90.597,0.28432314]
[1772636466036,15.38879227,90.71,90.599,5.10909883]
[1772636466251,15.38879227,90.7,90.601,0.28432314]
[1772636466445,15.38879227,90.69,90.603,0.28432314]
[1772636466657,15.38879227,90.69,90.605,0.28432314]
[1772636466824,15.38879227,90.67,90.59,0.28432314]
[1772636467031,15.38879227,90.67,90.591,7.95667864]
[1772636467242,15.38879227,90.67,90.592,7.95667864]
[1772636467553,0.28432314,90.699,90.593,7.95816021]
[1772636467751,38.5934347,90.689,90.603,0.28432314]
[1772636467953,38.5934347,90.689,90.608,0.28432314]
[1772636468254,15.38879227,90.67,90.602,3.69383402]
[1772636468466,15.38879227,90.65,90.599,11.03764942]
[1772636468639,170.91378226,90.689,90.599,11.03764942]
[1772636468640,0.28432314,90.688,90.599,38.63177297]
[1772636468962,38.5934347,90.689,90.603,0.28432314]
[1772636469132,88.14649948,90.758,90.608,5.10909883]
[1772636469327,15.38879227,90.71,90.612,3.97815716]
[1772636469533,0.14216157,90.719,90.617,0.28432314]
[1772636469742,15.38879227,90.71,90.634,0.28432314]
[1772636469963,15.38879227,90.74,90.643,0.28432314]
[1772636470247,181.80415831,90.757,90.648,0.28432314]
[1772636470438,15.38879227,90.75,90.653,0.28432314]
[1772636470750,15.38879227,90.75,90.658,0.28432314]
[1772636470956,15.38879227,90.74,90.663,0.28432314]
[1772636471247,15.38879227,90.75,90.668,0.28432314]
[1772636471447,38.56451842,90.757,90.673,0.28432314]
[1772636471651,11.01744292,90.766,90.682,0.28432314]
[1772636471863,15.38879227,90.77,90.687,0.28432314]
[1772636472033,214.71363162,90.819,90.692,0.28432314]
[1772636472034,15.38879227,90.76,90.692,0.28432314]
[1772636472230,15.38879227,90.76,90.697,0.28432314]
[1772636472528,15.38879227,90.77,90.687,0.28432314]
[1772636472734,15.38879227,90.77,90.683,137.84281506]
[1772636472735,15.38879227,90.77,90.692,0.28432314]
[1772636473034,15.38879227,90.8,90.701,0.28432314]
[1772636473238,15.38879227,90.8,90.706,0.28432314]
[1772636473432,15.48879227,90.79,90.711,0.28432314]
[1772636473657,15.48879227,90.79,90.716,0.28432314]
[1772636473955,0.1,90.79,90.718,0.28432314]
[1772636474136,0.1,90.79,90.721,0.28432314]
[1772636474332,0.1,90.79,90.717,137.79115269]
[1772636474333,15.38879227,90.8,90.723,0.28432314]
[1772636474953,44.03908844,90.829,90.721,0.28432314]
[1772636475155,15.38879227,90.79,90.721,0.28432314]
[1772636475533,15.38879227,90.78,90.72,3.69383402]
[1772636475746,5.10909883,90.828,90.724,3.69383402]
[1772636475945,15.38879227,90.79,90.724,3.69383402]
[1772636476146,15.38879227,90.79,90.725,0.28432314]
[1772636476349,214.68677748,90.83,90.73,0.28432314]
[1772636476350,15.38879227,90.81,90.73,0.28432314]
[1772636476742,15.38879227,90.81,90.721,126.76227112]
[1772636476743,38.53352416,90.83,90.735,0.28432314]
[1772636476937,15.38879227,90.79,90.736,7.12949856]
[1772636477146,15.38879227,90.78,90.721,38.57982164]
[1772636477335,15.38879227,90.77,90.721,11.02280618]
[1772636477542,15.38879227,90.78,90.722,7.1342234]
[1772636477737,3.69383402,90.819,90.665,1.10296145]
[1772636477738,15.38879227,90.76,90.665,1.10296145]
[1772636477953,15.38879227,90.76,90.675,27.57099531]
[1772636478150,15.38879227,90.76,90.679,3.69383402]
[1772636478441,15.38879227,90.76,90.675,27.57099531]
[1772636478442,15.38879227,90.79,90.683,11.88294485]
[1772636478752,15.38879227,90.76,90.684,15.06933272]
[1772636478940,15.38879227,90.75,90.685,7.1384203]
[1772636479140,15.38879227,90.74,90.686,7.1384203]
[1772636479343,15.38879227,90.75,90.687,7.14549]
[1772636479540,15.38879227,90.75,90.668,11.02924956]
[1772636479541,15.38879227,90.73,90.668,11.02924956]
[1772636479748,15.38879227,90.73,90.627,44.13684787]
[1772636479749,15.38879227,90.7,90.61,61.50294485]
[1772636479943,38.58492541,90.709,90.572,44.16359897]
[1772636479944,15.38879227,90.67,90.572,44.16359897]
[1772636480148,3.69383402,90.679,90.573,42.72321383]
[1772636480464,15.38879227,90.65,90.574,7.16325028]
[1772636480644,15.38879227,90.66,90.575,7.16325028]
[1772636480955,15.38879227,90.66,90.576,15.12894607]
[1772636481147,15.38879227,90.66,90.58,3.69383402]
[1772636481341,15.38879227,90.64,90.573,27.60204475]
[1772636481569,336.24006434,90.709,90.573,27.60204475]
[1772636481570,15.38879227,90.67,90.574,15.12882076]
[1772636481762,15.38879227,90.67,90.557,44.17092358]
[1772636481763,38.61472434,90.639,90.576,38.64158275]
[1772636482263,11.03277838,90.639,90.579,3.69383402]
[1772636482441,0.28432314,90.693,90.58,18.82771342]
[1772636482641,0.28432314,90.693,90.581,7.17286951]
[1772636482836,15.38879227,90.64,90.582,7.17286951]
[1772636483139,66.14395544,90.712,90.576,38.64158275]
[1772636483140,15.38879227,90.63,90.576,38.64158275]
[1772636483438,0.28432314,90.648,90.551,11.04350034]
[1772636483642,0.28432314,90.648,90.552,15.14779927]
[1772636483938,3.69383402,90.649,90.499,56.08194798]
[1772636483939,15.38879227,90.59,90.499,56.08194798]
[1772636484134,15.38879227,90.58,90.505,42.78043357]
[1772636484351,15.38879227,90.58,90.506,15.1576503]
[1772636484551,15.38879227,90.58,90.511,4.5]
[1772636484764,15.38879227,90.54,90.486,11.05142934]
[1772636485054,15.38879227,90.52,90.461,4.5]
[1772636485368,15.38879227,90.53,90.472,4.5]
[1772636485675,15.38879227,90.54,90.486,4.5]
[1772636485967,15.38879227,90.55,90.492,4.5]
[1772636486362,15.38879227,90.57,90.492,4.5]
[1772636486542,11.03996467,90.58,90.5,4.5]
[1772636486852,15.38879227,90.62,90.526,8.19383402]
[1772636487065,15.38879227,90.62,90.531,4.78432314]
[1772636487256,15.38879227,90.63,90.549,4.5]
[1772636487461,15.38879227,90.65,90.554,4.78432314]
[1772636487645,11.03156129,90.649,90.564,4.5]
[1772636487848,11.03156129,90.649,90.572,4.78432314]
[1772636488054,11.03156129,90.649,90.581,4.5]
[1772636488256,11.03156129,90.649,90.571,82.8079628]
[1772636488257,15.38879227,90.66,90.587,4.5]
[1772636488442,15.38879227,90.66,90.591,4.5]
[1772636488753,15.38879227,90.67,90.602,4.5]
[1772636488957,15.38879227,90.66,90.602,4.5]
[1772636489154,3.69383402,90.702,90.602,4.5]
[1772636489359,15.38879227,90.66,90.604,4.5]
[1772636489560,38.58279867,90.714,90.608,3.69383402]
[1772636489761,214.96130691,90.714,90.597,0.28432314]
[1772636489959,38.58279867,90.714,90.619,4.5]
[1772636490260,38.58279867,90.714,90.601,3.69383402]
[1772636490261,15.38879227,90.68,90.621,4.5]
[1772636490560,15.38879227,90.68,90.623,4.5]
[1772636490747,15.38879227,90.68,90.625,4.5]
[1772636490943,15.38879227,90.7,90.633,4.5]
[1772636491256,38.58279867,90.714,90.633,4.5]
[1772636491437,15.38879227,90.68,90.633,4.5]
[1772636491641,15.38879227,90.69,90.634,7.97609577]
[1772636491840,0.14216157,90.713,90.638,4.5]
[1772636491841,15.38879227,90.71,90.638,4.5]
[1772636492037,15.38879227,90.71,90.642,4.5]
[1772636492259,11.02110541,90.735,90.651,4.78432314]
[1772636492457,15.38879227,90.71,90.663,4.5]
[1772636492757,15.38879227,90.72,90.664,7.97534214]
[1772636492957,15.38879227,90.73,90.665,4.5]
[1772636493158,15.38879227,90.68,90.637,11.03302183]
[1772636493353,15.38879227,90.67,90.631,15.53373886]
[1772636493555,4.82477569,90.734,90.633,4.5]
[1772636493741,11.02044693,90.741,90.644,4.5]
[1772636493942,15.38879227,90.73,90.661,4.78432314]
[1772636494344,15.38879227,90.72,90.661,4.5]
[1772636494659,15.38879227,90.73,90.663,4.5]
[1772636495162,15.38879227,90.75,90.681,4.5]
[1772636495350,126.67569918,90.783,90.691,4.5]
[1772636495554,15.38879227,90.74,90.691,4.5]
[1772636495761,15.38879227,90.73,90.655,8.47815716]
[1772636495969,15.38879227,90.71,90.662,4.5]
[1772636496345,15.38879227,90.7,90.656,11.03070949]
[1772636496551,15.38879227,90.69,90.65,11.031399]
[1772636496746,170.83843091,90.729,90.618,11.03533514]
[1772636496747,15.38879227,90.66,90.618,11.03533514]
[1772636497441,15.38879227,90.69,90.622,4.5]
[1772636497645,8.80293285,90.725,90.622,4.5]
[1772636497850,11.02669563,90.689,90.624,4.5]
[1772636498068,15.38879227,90.68,90.624,4.5]
[1772636498365,11.02669563,90.689,90.623,38.62154198]
[1772636498366,15.38879227,90.66,90.623,11.03472628]
[1772636498568,0.28432314,90.688,90.623,11.03472628]
[1772636498947,15.38879227,90.67,90.624,4.5]
[1772636499354,15.38879227,90.69,90.626,4.5]
[1772636499661,15.38879227,90.72,90.653,4.5]
[1772636499865,15.38879227,90.74,90.661,16.77259357]
[1772636500160,15.38879227,90.74,90.662,4.5]
[1772636500665,15.38879227,90.74,90.682,4.5]
[1772636500963,44.06117909,90.783,90.66,3.69383402]
[1772636500964,15.38879227,90.71,90.66,3.69383402]
[1772636501156,8.07966162,90.71,90.661,4.5]
[1772636501349,15.38879227,90.72,90.661,4.5]
[1772636501563,15.38879227,90.7,90.657,11.03058782]
[1772636501863,15.38879227,90.7,90.647,43.11131642]
[1772636502166,15.38879227,90.7,90.648,4.5]
[1772636502345,15.38879227,90.69,90.648,4.5]
[1772636502545,15.38879227,90.68,90.635,11.03326529]
[1772636502746,15.38879227,90.68,90.611,11.98827043]
[1772636502747,0.28432314,90.733,90.618,4.5]
[1772636502954,15.38879227,90.71,90.626,4.5]
[1772636503271,15.38879227,90.7,90.643,4.5]
[1772636504065,15.38879227,90.68,90.61,4.5]
[1772636504265,15.38879227,90.66,90.61,4.5]
[1772636504450,15.38879227,90.67,90.61,4.5]
[1772636504766,15.38879227,90.66,90.613,4.5]
[1772636504944,15.38879227,90.67,90.613,4.5]
[1772636505151,15.38879227,90.67,90.615,4.5]
[1772636505459,0.28432314,90.698,90.617,4.5]
[1772636505663,15.38879227,90.66,90.619,4.5]
[1772636505865,15.38879227,90.68,90.623,4.5]
[1772636506064,15.38879227,90.69,90.627,4.5]
[1772636506265,15.38879227,90.7,90.643,4.5]
[1772636506560,15.38879227,90.7,90.633,3.69383402]
[1772636506561,15.38879227,90.7,90.645,4.5]
[1772636506742,15.38879227,90.69,90.647,4.5]
[1772636506946,15.38879227,90.7,90.648,8.06466688]
[1772636507266,15.38879227,90.7,90.649,8.06466688]
[1772636507468,15.38879227,90.7,90.65,8.06466688]
[1772636507663,38.58407469,90.711,90.651,8.06466688]
[1772636507664,15.38879227,90.69,90.651,8.06466688]
[1772636507866,15.38879227,90.68,90.63,4.5]
[1772636508047,15.38879227,90.67,90.631,8.06291654]
[1772636508366,15.38879227,90.68,90.632,8.06597172]
[1772636508667,15.38879227,90.69,90.634,4.5]
[1772636508868,15.38879227,90.68,90.635,15.32018663]
[1772636509067,15.38879227,90.66,90.617,11.03545692]
[1772636509263,15.38879227,90.66,90.618,15.33187693]
[1772636509465,229.69125431,90.709,90.617,11.03545692]
[1772636509466,15.38879227,90.67,90.619,15.33187693]
[1772636509768,15.38879227,90.64,90.592,11.03850229]
[1772636509950,15.38879227,90.63,90.594,11.0382586]
[1772636510268,15.38879227,90.62,90.595,7.2664295]
[1772636510469,15.35498377,90.61,90.562,11.04215896]
[1772636510669,15.35498377,90.63,90.564,4.5]
[1772636510971,15.35498377,90.63,90.566,4.5]
[1772636511153,26.38642337,90.65,90.577,0.14216157]
[1772636511355,15.35498377,90.67,90.59,4.5]
[1772636511560,15.35498377,90.67,90.602,4.5]
[1772636511766,15.35498377,90.67,90.604,4.5]
[1772636512069,93.72277902,90.693,90.608,4.5]
[1772636512070,11.02912792,90.669,90.608,4.5]
[1772636512268,38.60194773,90.669,90.61,4.5]
[1772636513581,11.02912792,90.669,90.61,4.5]
[1772636513757,11.02912792,90.669,90.611,8.07544451]
[1772636513957,15.35498377,90.68,90.614,38.62537796]
[1772636514163,8.03527149,90.67,90.616,4.5]
[1772636514363,15.35498377,90.67,90.616,4.5]
[1772636514673,15.35498377,90.68,90.618,4.5]
[1772636514874,15.35498377,90.69,90.62,4.5]
[1772636515072,15.35498377,90.68,90.622,4.5]
[1772636515272,15.35498377,90.67,90.624,4.5]
[1772636515455,15.35498377,90.66,90.615,0.28432314]
[1772636515656,15.35498377,90.67,90.614,38.62537796]
[1772636515870,15.35498377,90.66,90.614,38.62537796]
[1772636516268,15.35498377,90.65,90.611,11.03618765]
[1772636516577,38.60620566,90.659,90.611,11.03618765]
[1772636516973,0.28432314,90.669,90.611,11.03618765]
[1772636517572,38.60152199,90.67,90.611,11.03618765]
[1772636517773,11.02900628,90.67,90.612,4.5]
[1772636517968,26.38399005,90.67,90.614,4.5]
[1772636518275,44.09029189,90.723,90.618,4.5]
[1772636518276,15.35498377,90.68,90.618,4.5]
[1772636518467,15.35498377,90.68,90.62,4.5]
[1772636518787,15.35498377,90.68,90.622,4.5]
[1772636519169,15.35498377,90.68,90.624,4.5]
[1772636519376,15.35498377,90.7,90.626,4.5]
[1772636519576,15.35498377,90.7,90.625,8.36870744]
[1772636519577,15.35498377,90.7,90.628,4.5]
[1772636519778,1.00388192,90.677,90.63,4.5]
[1772636520167,11.02547988,90.699,90.647,38.61131642]
[1772636520368,11.02547988,90.699,90.649,4.5]
[1772636520563,11.02547988,90.699,90.631,44.13498892]
[1772636520564,15.35498377,90.68,90.621,9.08229937]
[1772636520768,15.35498377,90.68,90.603,12.1097325]
[1772636520769,15.35498377,90.65,90.608,4.5]
[1772636521063,0.28432314,90.695,90.609,8.10105461]
[1772636521276,0.28432314,90.695,90.604,4.5]
[1772636521479,15.35498377,90.66,90.606,4.5]
[1772636521675,15.35498377,90.65,90.608,4.5]
[1772636521977,15.35498377,90.65,90.609,8.10553825]
[1772636522178,15.35498377,90.64,90.603,11.03716212]
[1772636522479,15.35498377,90.66,90.605,4.5]
[1772636522686,15.35498377,90.67,90.607,4.5]
[1772636522887,38.59130702,90.694,90.615,4.5]
[1772636522888,15.35498377,90.68,90.615,4.5]
[1772636523070,15.35498377,90.68,90.617,4.5]
[1772636523271,15.35498377,90.69,90.625,4.5]
[1772636523605,38.59130702,90.694,90.627,4.5]
[1772636523606,15.35498377,90.66,90.627,4.5]
[1772636523784,15.35498377,90.67,90.628,7.31074388]
[1772636523977,15.35498377,90.66,90.628,7.31074388]
[1772636524181,15.35498377,90.66,90.611,4.5]
[1772636524474,11.03034447,90.659,90.613,4.5]
[1772636524786,11.02968022,90.665,90.615,4.5]
[1772636524971,11.02968022,90.665,90.617,4.5]
[1772636525287,15.35498377,90.69,90.619,4.5]
[1772636525480,15.35498377,90.69,90.625,4.5]
[1772636525687,15.35498377,90.69,90.62,15.44767158]
[1772636525688,15.35498377,90.69,90.627,4.5]
[1772636525886,15.35498377,90.68,90.629,4.5]
[1772636526190,15.35498377,90.65,90.63,7.31774696]
[1772636526379,11.03034447,90.659,90.616,38.62452546]
[1772636526682,15.35498377,90.64,90.617,7.32411175]
[1772636526981,15.35498377,90.64,90.618,7.32393936]
[1772636527182,15.35498377,90.64,90.601,4.5]
[1772636527390,15.35498377,90.63,90.602,7.32598621]
[1772636527579,15.35498377,90.64,90.603,7.32644899]
[1772636527780,15.35498377,90.67,90.605,4.5]
[1772636527982,44.10143329,90.7,90.606,15.46397621]
[1772636527983,15.35498377,90.63,90.606,15.46397621]
[1772636528287,15.35498377,90.62,90.577,4.5]
[1772636528486,15.35498377,90.61,90.578,8.14437108]
[1772636528687,44.09426389,90.715,90.607,9.08229937]
[1772636528889,15.35498377,90.69,90.617,4.5]
[1772636529071,15.35498377,90.69,90.625,4.5]
[1772636529391,15.35498377,90.69,90.602,12.21646062]
[1772636529392,38.58067217,90.719,90.63,4.78432314]
[1772636529576,15.35498377,90.7,90.635,4.5]
[1772636529777,15.35498377,90.7,90.637,4.5]
[1772636529979,15.35498377,90.7,90.639,4.5]
[1772636530178,15.35498377,90.71,90.641,4.5]
[1772636530377,38.58917959,90.699,90.646,4.5]
[1772636530575,15.35498377,90.69,90.647,8.14437108]
[1772636530791,15.35498377,90.66,90.619,11.03521336]
[1772636530984,126.79301865,90.699,90.625,4.5]
[1772636530985,15.35498377,90.68,90.625,4.5]
[1772636531177,0.28432314,90.698,90.618,11.03522918]
[1772636531178,15.35498377,90.66,90.618,11.03522918]
[1772636531388,15.35498377,90.66,90.619,4.5]
[1772636531572,15.35498377,90.68,90.624,4.5]
[1772636531775,15.35498377,90.69,90.635,4.5]
[1772636531975,15.35498377,90.69,90.636,4.5]
[1772636532277,11.0242644,90.709,90.656,9.1486641]
[1772636532476,11.0242644,90.709,90.658,4.5]
[1772636532689,15.35498377,90.68,90.641,9.1486641]
[1772636532988,15.35498377,90.68,90.636,4.5]
[1772636533172,15.35498377,90.69,90.636,4.5]
[1772636533374,15.35498377,90.68,90.636,4.5]
[1772636533570,15.35498377,90.68,90.613,12.21646062]
[1772636533571,15.35498377,90.67,90.629,9.1486641]
[1772636533792,15.35498377,90.67,90.63,4.5]
[1772636533985,15.35498377,90.68,90.63,4.5]
[1772636534298,11.02791164,90.679,90.632,4.5]
[1772636534586,27.56673907,90.689,90.636,4.5]
[1772636534788,11.02669563,90.689,90.636,4.5]
[1772636534989,11.02669563,90.689,90.643,9.1486641]
[1772636535189,11.02669563,90.689,90.642,4.5]
[1772636535493,15.35498377,90.72,90.651,0.28432314]
[1772636535789,11.02207722,90.727,90.665,4.5]
[1772636535997,11.02207722,90.727,90.66,9.1486641]
[1772636535998,11.02207722,90.727,90.67,4.5]
[1772636536178,15.35498377,90.72,90.67,4.5]
[1772636536500,15.35498377,90.7,90.657,11.03053341]
[1772636536673,15.35498377,90.7,90.633,88.26734408]
[1772636536674,15.35498377,90.7,90.652,9.1486641]
[1772636536880,44.08830888,90.727,90.642,13.6486641]
[1772636536881,15.35498377,90.69,90.642,13.6486641]
[1772636537097,15.35498377,90.7,90.649,4.5]
[1772636537403,15.35498377,90.66,90.629,9.20238677]
[1772636537577,15.35498377,90.66,90.601,4.5]
[1772636537891,15.35498377,90.68,90.601,4.5]
[1772636538072,15.35498377,90.69,90.609,4.5]
[1772636538273,11.02547988,90.699,90.631,4.5]
[1772636538477,11.02467197,90.706,90.634,4.78432314]
[1772636538676,15.35498377,90.72,90.634,4.78432314]
[1772636538875,15.35498377,90.73,90.654,4.78432314]
[1772636539079,38.57301872,90.737,90.654,4.78432314]
[1772636539080,15.35498377,90.72,90.654,4.78432314]
[1772636539278,11.02086249,90.737,90.654,4.78432314]
[1772636539496,11.02086249,90.737,90.658,4.78432314]
[1772636539992,11.02086249,90.737,90.669,4.78432314]
[1772636540294,38.57301872,90.737,90.676,4.5]
[1772636540493,27.54898438,90.748,90.685,0.28432314]
[1772636540701,11.01940517,90.749,90.687,4.5]
[1772636540888,11.01940517,90.749,90.689,4.5]
[1772636541194,11.01940517,90.749,90.675,126.82657843]
[1772636541195,15.35498377,90.76,90.694,4.5]
[1772636541495,15.35498377,90.71,90.665,11.02961451]
[1772636541695,15.35498377,90.69,90.648,4.5]
[1772636541892,15.35498377,90.68,90.63,4.5]
[1772636542500,15.42440545,90.861,90.6,12.21646062]
[1772636542501,15.35498377,90.71,90.639,0.28432314]
[1772636542679,11.01964803,90.747,90.647,4.78432314]
[1772636542878,15.35498377,90.74,90.662,0.14216157]
[1772636543178,11.01576355,90.779,90.683,12.21646062]
[1772636543391,11.11564725,90.78,90.707,8.19383402]
[1772636543598,0.1,90.78,90.721,4.78432314]
[1772636544398,0.1,90.78,90.723,4.78432314]
[1772636545118,11.01215448,90.809,90.731,4.5]
[1772636545283,11.01148452,90.815,90.734,4.78432314]
[1772636546495,27.52352304,90.832,90.747,4.78432314]
[1772636546694,11.00848754,90.839,90.747,4.78432314]